[Event "44th Chess Olympiad Open 2022"]
[Site "Chennai"]
[Date "2022.08.07"]
[Round "9.56"]
[White "Ayyad, Maher"]
[Black "Kaloust, Giorgio"]
[Result "0-1"]
[WhiteElo "2101"]
[BlackElo "1942"]
[Annotator "NA RC"]
[PlyCount "84"]
[EventDate "2022.??.??"]
[TimeControl "60"]

1. d4 {[%emt 0:00:03]} Nf6 {[%emt 0:00:07]} 2. Nf3 {[%emt 0:00:05]} e6 {
[%emt 0:00:08]} 3. Bf4 {[%emt 0:00:04]} c5 {[%emt 0:00:14]} 4. e3 {[%emt 0:00:
00]} Nc6 {[%emt 0:00:13]} 5. c3 {[%emt 0:00:10]} d5 {[%emt 0:00:17]} 6. Nbd2 {
[%emt 0:00:23]} Nh5 {[%emt 0:00:21]} 7. Bg5 {[%emt 0:01:20]} f6 {[%emt 0:09:31]
} 8. Bh4 {[%emt 0:00:31]} cxd4 {[%emt 0:04:46]} 9. cxd4 {[%emt 0:03:44]} g6 {
[%emt 0:08:09]} 10. a3 {[%emt 0:06:46]} Be7 {[%emt 0:11:48]} 11. Bd3 {[%emt 0:
00:00]} O-O {[%emt 0:02:56]} 12. O-O {[%emt 0:00:20]} Kh8 {[%emt 0:16:05]} 13.
Rc1 {[%emt 0:04:01]} e5 {[%emt 0:05:16]} 14. dxe5 {[%emt 0:01:02]} fxe5 {
[%emt 0:00:26]} 15. Bxe7 {[%emt 0:00:23]} Qxe7 {[%emt 0:00:02]} 16. Bb5 {
[%emt 0:00:41]} Bd7 {[%emt 0:03:41]} 17. Nb3 {[%emt 0:00:19]} a6 {[%emt 0:00:
00]} 18. Be2 {[%emt 0:00:37]} Rad8 {[%emt 0:07:36]} 19. Rc5 {[%emt 0:11:06]}
Nf6 {[%emt 0:01:50]} 20. Rc1 {[%emt 0:01:42]} Rfe8 {[%emt 0:04:32]} 21. Nc5 {
[%emt 0:04:53]} Bc8 {[%emt 0:00:14]} 22. h3 {[%emt 0:06:43]} d4 {[%emt 0:04:48]
} 23. exd4 {[%emt 0:00:26]} Nxd4 {[%emt 0:00:16]} 24. Nxd4 {[%emt 0:00:24]}
Rxd4 {[%emt 0:01:54]} 25. Qc2 {[%emt 0:02:47]} Red8 {[%emt 0:03:36]} 26. Nb3 {
[%emt 0:00:24]} Bf5 {[%emt 0:00:32]} 27. Qc3 {[%emt 0:00:10]} R4d6 {[%emt 0:00:
00]} 28. Rfe1 {[%emt 0:02:10]} Nd5 {[%emt 0:01:21]} 29. Qg3 {[%emt 0:00:21]}
Nf4 {[%emt 0:01:54]} 30. Rc3 {[%emt 0:03:30]} Nd5 {[%emt 0:01:41]} 31. Rcc1 {
[%emt 0:03:55]} Nf4 {[%emt 0:00:18]} 32. Nc5 {[%emt 0:01:44]} Nxe2+ {[%emt 0:
00:00]} 33. Rxe2 {[%emt 0:01:09]} Rd1+ {[%emt 0:00:06]} 34. Rxd1 {[%emt 0:00:
00]} Rxd1+ {[%emt 0:00:06]} 35. Kh2 {[%emt 0:00:06]} Qxc5 {[%emt 0:00:27]} 36.
Rxe5 {[%emt 0:01:10]} Rd5 {[%emt 0:01:31]} 37. Re8+ {[%emt 0:02:42]} Kg7 {
[%emt 0:00:02]} 38. b4 {[%emt 0:02:57]} Qd6 {[%emt 0:00:42]} 39. Qxd6 {[%emt 0:
00:00]} Rxd6 {[%emt 0:00:01]} 40. Re7+ {[%emt 0:00:08]} Kg8 {[%emt 0:01:14]}
41. Rxb7 {[%emt 0:30:10]} Rd3 {[%emt 0:01:51]} 42. a4 {[%emt 0:00:00]} Ra3 {
[%emt 0:00:58]} 0-1

[Event "44th Chess Olympiad Open 2022"]
[Site "Chennai"]
[Date "2022.08.07"]
[Round "9.56"]
[White "Khoder, Akram"]
[Black "Shaker, Musab"]
[Result "1-0"]
[WhiteElo "2038"]
[BlackElo "1705"]
[Annotator "NA RC"]
[PlyCount "153"]
[EventDate "2022.??.??"]
[TimeControl "60"]

1. d4 {[%emt 0:00:02]} Nf6 {[%emt 0:00:08]} 2. c4 {[%emt 0:00:04]} e6 {[%emt 0:
00:00]} 3. g3 {[%emt 0:00:08]} d5 {[%emt 0:00:10]} 4. Bg2 {[%emt 0:00:05]} c6 {
[%emt 0:00:11]} 5. Nf3 {[%emt 0:00:07]} Bd6 {[%emt 0:00:28]} 6. Nc3 {[%emt 0:
00:00]} O-O {[%emt 0:01:20]} 7. O-O {[%emt 0:00:07]} Nbd7 {[%emt 0:00:37]} 8.
Nd2 {[%emt 0:00:19]} Be7 {[%emt 0:05:18]} 9. Qc2 {[%emt 0:03:46]} e5 {[%emt 0:
00:00]} 10. dxe5 {[%emt 0:03:13]} Nxe5 {[%emt 0:00:54]} 11. cxd5 {[%emt 0:00:
00]} cxd5 {[%emt 0:00:32]} 12. Nb3 {[%emt 0:00:26]} d4 {[%emt 0:12:31]} 13. Ne4
{[%emt 0:12:35]} d3 {[%emt 0:04:53]} 14. exd3 {[%emt 0:00:33]} Qxd3 {[%emt 0:
00:00]} 15. Qxd3 {[%emt 0:04:56]} Nxd3 {[%emt 0:00:10]} 16. Rd1 {[%emt 0:01:10]
} Nxc1 {[%emt 0:05:02]} 17. Raxc1 {[%emt 0:02:48]} Nxe4 {[%emt 0:10:34]} 18.
Bxe4 {[%emt 0:00:09]} Bf6 {[%emt 0:00:22]} 19. Rd2 {[%emt 0:04:59]} Be6 {
[%emt 0:11:35]} 20. Bxb7 {[%emt 0:01:43]} Rab8 {[%emt 0:00:53]} 21. Bd5 {
[%emt 0:00:21]} Bxb2 {[%emt 0:08:29]} 22. Rc7 {[%emt 0:03:14]} Be5 {[%emt 0:00:
00]} 23. Rxa7 {[%emt 0:01:35]} Bh3 {[%emt 0:02:02]} 24. f3 {[%emt 0:01:06]} Bd6
{[%emt 0:04:04]} 25. Rxf7 {[%emt 0:01:58]} Rxf7 {[%emt 0:00:17]} 26. Bxf7+ {
[%emt 0:00:04]} Kxf7 {[%emt 0:00:10]} 27. Rxd6 {[%emt 0:00:03]} Ra8 {[%emt 0:
00:00]} 28. Rd2 {[%emt 0:00:15]} Be6 {[%emt 0:00:28]} 29. Kf2 {[%emt 0:00:26]}
Ra3 {[%emt 0:00:19]} 30. Rb2 {[%emt 0:00:04]} Kf6 {[%emt 0:00:48]} 31. Ke3 {
[%emt 0:00:11]} Bd5 {[%emt 0:00:47]} 32. f4 {[%emt 0:00:34]} g5 {[%emt 0:00:38]
} 33. Kd4 {[%emt 0:00:47]} Be6 {[%emt 0:00:37]} 34. fxg5+ {[%emt 0:00:40]} Kxg5
{[%emt 0:00:05]} 35. Kc3 {[%emt 0:00:11]} Ra7 {[%emt 0:00:40]} 36. Rd2 {
[%emt 0:00:25]} Kg4 {[%emt 0:00:38]} 37. Rd4+ {[%emt 0:00:14]} Kh3 {[%emt 0:00:
00]} 38. Rd2 {[%emt 0:00:54]} Bf7 {[%emt 0:00:34]} 39. Kb2 {[%emt 0:02:04]} Bc4
{[%emt 0:00:31]} 40. Rd4 {[%emt 0:05:08]} Bg8 {[%emt 0:00:29]} 41. Rh4+ {
[%emt 0:30:47]} Kg2 {[%emt 0:30:04]} 42. Rh6 {[%emt 0:00:07]} Bd5 {[%emt 0:00:
00]} 43. Nc1 {[%emt 0:00:00]} Rb7+ {[%emt 0:00:00]} 44. Kc3 {[%emt 0:00:00]}
Rc7+ {[%emt 0:00:00]} 45. Kd2 {[%emt 0:00:00]} Ra7 {[%emt 0:00:00]} 46. a4 {
[%emt 0:00:00]} Bg8 {[%emt 0:00:00]} 47. Rh4 {[%emt 0:00:00]} Be6 {[%emt 0:00:
00]} 48. Ne2 {[%emt 0:00:00]} Bb3 {[%emt 0:00:00]} 49. Nc3 {[%emt 0:00:00]} Be6
{[%emt 0:00:00]} 50. g4 {[%emt 0:00:00]} Bb3 {[%emt 0:00:39]} 51. g5 {[%emt 0:
00:00]} Be6 {[%emt 0:00:58]} 52. Re4 {[%emt 0:00:00]} Rd7+ {[%emt 0:01:49]} 53.
Ke1 {[%emt 0:00:00]} Bf5 {[%emt 0:01:40]} 54. Re2+ {[%emt 0:00:00]} Kh3 {
[%emt 0:00:46]} 55. Re5 {[%emt 0:00:08]} Bg6 {[%emt 0:01:36]} 56. a5 {[%emt 0:
00:00]} Kxh2 {[%emt 0:00:25]} 57. Na4 {[%emt 0:01:36]} Kg3 {[%emt 0:00:29]} 58.
Nc5 {[%emt 0:00:25]} Ra7 {[%emt 0:00:24]} 59. Nb3 {[%emt 0:03:37]} Kf4 {
[%emt 0:00:29]} 60. Rc5 {[%emt 0:00:22]} Bf5 {[%emt 0:00:40]} 61. Nd4 {[%emt 0:
00:00]} Bg6 {[%emt 0:00:29]} 62. Kd2 {[%emt 0:00:23]} Be8 {[%emt 0:00:32]} 63.
Kc3 {[%emt 0:00:17]} Ke4 {[%emt 0:00:16]} 64. Nb5 {[%emt 0:00:36]} Bxb5 {
[%emt 0:00:40]} 65. Rxb5 {[%emt 0:00:06]} Kf4 {[%emt 0:00:30]} 66. Kb4 {
[%emt 0:00:24]} Kg4 {[%emt 0:00:33]} 67. Kc5 {[%emt 0:00:14]} Ra8 {[%emt 0:00:
00]} 68. Kc6 {[%emt 0:00:19]} Kh5 {[%emt 0:00:38]} 69. Kb7 {[%emt 0:00:16]} Re8
{[%emt 0:00:29]} 70. Rd5 {[%emt 0:03:33]} Re6 {[%emt 0:00:31]} 71. a6 {[%emt 0:
00:00]} Re7+ {[%emt 0:00:32]} 72. Kc6 {[%emt 0:00:13]} Re6+ {[%emt 0:00:23]}
73. Rd6 {[%emt 0:02:12]} Re5 {[%emt 0:00:29]} 74. g6 {[%emt 0:00:50]} hxg6 {
[%emt 0:00:38]} 75. Rd5 {[%emt 0:00:07]} Rxd5 {[%emt 0:00:25]} 76. Kxd5 {
[%emt 0:00:13]} g5 {[%emt 0:00:04]} 77. a7 {[%emt 0:00:07]} 1-0

[Event "44th Chess Olympiad Open 2022"]
[Site "Chennai"]
[Date "2022.08.07"]
[Round "9.56"]
[White "Al-Burshaid, Ebrahim"]
[Black "Kassis, Antoine"]
[Result "1/2-1/2"]
[WhiteElo "1702"]
[BlackElo "2202"]
[Annotator "RC"]
[PlyCount "108"]
[EventDate "2022.??.??"]
[TimeControl "60"]

1. e4 {[%emt 0:00:07]} c5 {[%emt 0:00:06]} 2. Nf3 {[%emt 0:00:10]} d6 {[%emt 0:
00:00]} 3. d4 {[%emt 0:00:12]} cxd4 {[%emt 0:00:07]} 4. Nxd4 {[%emt 0:00:12]}
Nf6 {[%emt 0:00:05]} 5. Nc3 {[%emt 0:00:20]} Nc6 {[%emt 0:00:08]} 6. Bg5 {
[%emt 0:01:03]} e6 {[%emt 0:00:16]} 7. Qd2 {[%emt 0:00:59]} a6 {[%emt 0:00:08]}
8. O-O-O {[%emt 0:02:00]} Bd7 {[%emt 0:01:31]} 9. Kb1 {[%emt 0:05:19]} h6 {
[%emt 0:04:54]} 10. Bxf6 {[%emt 0:11:46]} Qxf6 {[%emt 0:00:13]} 11. Nb3 {
[%emt 0:00:25]} g5 {[%emt 0:09:36]} 12. f3 {[%emt 0:12:43]} Qd8 {[%emt 0:10:33]
} 13. Qf2 {[%emt 0:14:59]} Qc7 {[%emt 0:02:43]} 14. h4 {[%emt 0:02:55]} gxh4 {
[%emt 0:11:54]} 15. Rxh4 {[%emt 0:03:33]} b5 {[%emt 0:03:25]} 16. f4 {[%emt 0:
00:00]} Rc8 {[%emt 0:07:40]} 17. Re1 {[%emt 0:19:08]} Be7 {[%emt 0:08:12]} 18.
Rh5 {[%emt 0:04:27]} Na5 {[%emt 0:23:57]} 19. Qd4 {[%emt 0:03:32]} Rf8 {
[%emt 0:03:19]} 20. Bd3 {[%emt 0:01:46]} Nxb3 {[%emt 0:00:16]} 21. cxb3 {
[%emt 0:01:53]} Rg8 {[%emt 0:02:56]} 22. Rxh6 {[%emt 0:01:08]} Qc5 {[%emt 0:00:
00]} 23. Qxc5 {[%emt 0:00:54]} Rxc5 {[%emt 0:01:55]} 24. Bf1 {[%emt 0:00:22]}
Rg4 {[%emt 0:00:59]} 25. Rh8+ {[%emt 0:00:25]} Bf8 {[%emt 0:00:05]} 26. b4 {
[%emt 0:00:50]} Rc8 {[%emt 0:03:19]} 27. Nd5 {[%emt 0:00:54]} exd5 {[%emt 0:00:
00]} 28. exd5+ {[%emt 0:00:11]} Be6 {[%emt 0:00:01]} 29. dxe6 {[%emt 0:00:10]}
fxe6 {[%emt 0:00:04]} 30. Rxe6+ {[%emt 0:00:28]} Kf7 {[%emt 0:00:13]} 31. Rxd6
{[%emt 0:01:01]} Rxf4 {[%emt 0:02:41]} 32. Rd1 {[%emt 0:01:08]} Rxb4 {[%emt 0:
00:00]} 33. Bd3 {[%emt 0:00:19]} Rxb2+ {[%emt 0:01:02]} 34. Kxb2 {[%emt 0:00:
00]} Bg7+ {[%emt 0:00:02]} 35. Kb1 {[%emt 0:00:34]} Bxh8 {[%emt 0:00:35]} 36.
Be4 {[%emt 0:00:16]} Rc5 {[%emt 0:02:06]} 37. g4 {[%emt 0:00:25]} Ke7 {[%emt 0:
00:00]} 38. Bf5 {[%emt 0:00:42]} Be5 {[%emt 0:01:54]} 39. Bc2 {[%emt 0:00:52]}
Rc4 {[%emt 0:00:25]} 40. Bf5 {[%emt 0:00:10]} Rb4+ {[%emt 0:00:20]} 41. Kc1 {
[%emt 0:30:32]} Rc4+ {[%emt 0:30:44]} 42. Kb1 {[%emt 0:00:13]} Kf6 {[%emt 0:00:
00]} 43. Re1 {[%emt 0:00:00]} a5 {[%emt 0:00:00]} 44. Bd7 {[%emt 0:00:00]} Rd4
{[%emt 0:00:00]} 45. g5+ {[%emt 0:00:00]} Ke7 {[%emt 0:00:00]} 46. Rxe5+ {
[%emt 0:00:00]} Kxd7 {[%emt 0:00:00]} 47. Rxb5 {[%emt 0:00:00]} a4 {[%emt 0:00:
00]} 48. g6 {[%emt 0:00:00]} Rg4 {[%emt 0:00:00]} 49. Rb6 {[%emt 0:00:00]} Kc7
{[%emt 0:00:00]} 50. Rf6 {[%emt 0:00:00]} Rg2 {[%emt 0:00:00]} 51. a3 {[%emt 0:
00:00]} Kb7 {[%emt 0:00:00]} 52. Rf7+ {[%emt 0:00:00]} Kb6 {[%emt 0:00:00]} 53.
g7 {[%emt 0:02:01]} Kc5 {[%emt 0:00:00]} 54. Kc1 {[%emt 0:01:06]} Kc4 {[%emt 0:
00:00]} 1/2-1/2

[Event "44th Chess Olympiad Open 2022"]
[Site "Chennai"]
[Date "2022.08.07"]
[Round "9.57"]
[White "Blackburn, Jonathan L B"]
[Black "Sai Han Thiha"]
[Result "1-0"]
[WhiteElo "2176"]
[BlackElo "1974"]
[Annotator "RC"]
[PlyCount "113"]
[EventDate "2022.??.??"]
[TimeControl "60"]

1. d4 {[%emt 0:00:03]} Nf6 {[%emt 0:00:05]} 2. c4 {[%emt 0:00:05]} g6 {[%emt 0:
00:00]} 3. Nc3 {[%emt 0:00:04]} Bg7 {[%emt 0:00:11]} 4. e4 {[%emt 0:00:05]} d6
{[%emt 0:00:02]} 5. Bd3 {[%emt 0:00:04]} O-O {[%emt 0:02:50]} 6. Nge2 {[%emt 0:
00:00]} Nfd7 {[%emt 0:21:52]} 7. O-O {[%emt 0:06:16]} c5 {[%emt 0:00:27]} 8. d5
{[%emt 0:01:13]} Ne5 {[%emt 0:00:09]} 9. Ng3 {[%emt 0:06:16]} Nxd3 {[%emt 0:00:
00]} 10. Qxd3 {[%emt 0:00:04]} Na6 {[%emt 0:07:02]} 11. Be3 {[%emt 0:09:30]}
Nc7 {[%emt 0:01:41]} 12. f4 {[%emt 0:09:39]} a6 {[%emt 0:03:50]} 13. a4 {
[%emt 0:00:38]} Rb8 {[%emt 0:00:31]} 14. e5 {[%emt 0:04:27]} b5 {[%emt 0:09:09]
} 15. Qe2 {[%emt 0:06:20]} bxc4 {[%emt 0:01:17]} 16. Rad1 {[%emt 0:01:59]} f5 {
[%emt 0:07:09]} 17. Bc1 {[%emt 0:07:34]} Bb7 {[%emt 0:02:19]} 18. Rfe1 {
[%emt 0:01:56]} Ba8 {[%emt 0:03:52]} 19. h4 {[%emt 0:07:27]} dxe5 {[%emt 0:00:
00]} 20. fxe5 {[%emt 0:14:41]} Nxd5 {[%emt 0:00:02]} 21. Bg5 {[%emt 0:03:14]}
Nxc3 {[%emt 0:02:13]} 22. bxc3 {[%emt 0:00:08]} Qc7 {[%emt 0:00:07]} 23. Qxc4+
{[%emt 0:00:27]} Kh8 {[%emt 0:00:02]} 24. Qe6 {[%emt 0:02:52]} Rb2 {[%emt 0:00:
00]} 25. Rd7 {[%emt 0:01:38]} Qc6 {[%emt 0:00:52]} 26. Qxc6 {[%emt 0:00:47]}
Bxc6 {[%emt 0:00:02]} 27. Rc7 {[%emt 0:00:18]} Rxg2+ {[%emt 0:04:58]} 28. Kf1 {
[%emt 0:00:04]} Rxg3 {[%emt 0:00:03]} 29. Rxc6 {[%emt 0:00:29]} Re8 {[%emt 0:
00:00]} 30. Rxc5 {[%emt 0:01:42]} h6 {[%emt 0:00:16]} 31. Be3 {[%emt 0:01:03]}
Rg4 {[%emt 0:03:06]} 32. Bd4 {[%emt 0:00:20]} Rxh4 {[%emt 0:00:50]} 33. Rc6 {
[%emt 0:00:08]} Rb8 {[%emt 0:01:25]} 34. Rxg6 {[%emt 0:02:02]} Rb2 {[%emt 0:00:
00]} 35. Re2 {[%emt 0:02:26]} Rh1+ {[%emt 0:01:18]} 36. Kg2 {[%emt 0:00:07]}
Rxe2+ {[%emt 0:00:02]} 37. Kxh1 {[%emt 0:00:03]} Ra2 {[%emt 0:04:11]} 38. Rxa6
{[%emt 0:00:41]} Kg8 {[%emt 0:00:23]} 39. Ra8+ {[%emt 0:00:22]} Kh7 {[%emt 0:
00:00]} 40. a5 {[%emt 0:01:45]} Re2 {[%emt 0:00:42]} 41. Re8 {[%emt 0:35:47]}
Ra2 {[%emt 0:30:38]} 42. Rxe7 {[%emt 0:00:30]} Kg8 {[%emt 0:00:00]} 43. Re8+ {
[%emt 0:00:00]} Kf7 {[%emt 0:00:00]} 44. Ra8 {[%emt 0:00:00]} f4 {[%emt 0:00:
00]} 45. a6 {[%emt 0:00:00]} f3 {[%emt 0:00:00]} 46. Kg1 {[%emt 0:00:00]} f2+ {
[%emt 0:01:11]} 47. Bxf2 {[%emt 0:00:00]} Bxe5 {[%emt 0:01:34]} 48. a7 {
[%emt 0:00:00]} Bxc3 {[%emt 0:00:41]} 49. Rc8 {[%emt 0:00:00]} Be1 {[%emt 0:00:
00]} 50. Bd4 {[%emt 0:00:00]} Bc3 {[%emt 0:00:52]} 51. Rxc3 {[%emt 0:00:00]}
Ra1+ {[%emt 0:00:25]} 52. Kg2 {[%emt 0:00:00]} Ra2+ {[%emt 0:00:24]} 53. Kg3 {
[%emt 0:00:00]} Ra4 {[%emt 0:00:37]} 54. Rc8 {[%emt 0:00:00]} Ra3+ {[%emt 0:00:
00]} 55. Kf4 {[%emt 0:00:00]} Ra4 {[%emt 0:00:17]} 56. Ke4 {[%emt 0:00:00]} h5
{[%emt 0:00:29]} 57. a8=Q {[%emt 0:00:00]} 1-0

[Event "44th Chess Olympiad Open 2022"]
[Site "Chennai"]
[Date "2022.08.07"]
[Round "9.57"]
[White "Maung, Maung Kyaw Zaw Hein"]
[Black "Toczek, Grzegorz"]
[Result "1-0"]
[WhiteElo "2121"]
[BlackElo "2287"]
[Annotator "RC"]
[PlyCount "81"]
[EventDate "2022.??.??"]
[TimeControl "60"]

1. Nf3 {[%emt 0:00:13]} d5 {[%emt 0:00:18]} 2. d4 {[%emt 0:00:07]} e6 {[%emt 0:
00:00]} 3. c4 {[%emt 0:00:04]} c5 {[%emt 0:00:17]} 4. cxd5 {[%emt 0:00:29]}
exd5 {[%emt 0:00:06]} 5. Nc3 {[%emt 0:01:35]} Nc6 {[%emt 0:00:12]} 6. g3 {
[%emt 0:00:14]} Nf6 {[%emt 0:00:05]} 7. Bg2 {[%emt 0:01:39]} Be7 {[%emt 0:00:
00]} 8. O-O {[%emt 0:00:09]} O-O {[%emt 0:00:04]} 9. Bg5 {[%emt 0:05:30]} c4 {
[%emt 0:00:07]} 10. Ne5 {[%emt 0:04:08]} Be6 {[%emt 0:02:40]} 11. f4 {[%emt 0:
00:00]} h6 {[%emt 0:01:05]} 12. Bxf6 {[%emt 0:04:55]} Bxf6 {[%emt 0:00:07]} 13.
f5 {[%emt 0:05:25]} Bxe5 {[%emt 0:00:47]} 14. dxe5 {[%emt 0:01:01]} Qb6+ {
[%emt 0:00:05]} 15. Kh1 {[%emt 0:00:46]} Qxb2 {[%emt 0:02:48]} 16. fxe6 {
[%emt 0:10:11]} fxe6 {[%emt 0:00:33]} 17. Rc1 {[%emt 0:03:30]} Qb6 {[%emt 0:00:
00]} 18. Bh3 {[%emt 0:07:41]} Rxf1+ {[%emt 0:04:54]} 19. Qxf1 {[%emt 0:00:43]}
Nxe5 {[%emt 0:08:10]} 20. Qf4 {[%emt 0:01:46]} Ng6 {[%emt 0:02:15]} 21. Qg4 {
[%emt 0:05:45]} Nf8 {[%emt 0:00:04]} 22. Rb1 {[%emt 0:05:51]} Qc7 {[%emt 0:00:
00]} 23. Nb5 {[%emt 0:07:33]} Qb6 {[%emt 0:05:50]} 24. a4 {[%emt 0:02:21]} Re8
{[%emt 0:02:50]} 25. Rf1 {[%emt 0:00:32]} Qe3 {[%emt 0:04:08]} 26. Qh5 {
[%emt 0:05:06]} Re7 {[%emt 0:00:20]} 27. Qh4 {[%emt 0:08:15]} Qg5 {[%emt 0:00:
00]} 28. Qd4 {[%emt 0:00:44]} Qh5 {[%emt 0:01:00]} 29. Bg4 {[%emt 0:00:46]} Qe8
{[%emt 0:00:32]} 30. Qxa7 {[%emt 0:01:43]} Rf7 {[%emt 0:01:52]} 31. Rf2 {
[%emt 0:00:46]} Rxf2 {[%emt 0:00:53]} 32. Qxf2 {[%emt 0:00:03]} Qc6 {[%emt 0:
00:00]} 33. Qd4 {[%emt 0:00:44]} Nd7 {[%emt 0:00:20]} 34. Bf3 {[%emt 0:00:15]}
Nf6 {[%emt 0:00:32]} 35. Nc3 {[%emt 0:00:47]} Qd6 {[%emt 0:00:13]} 36. Qd2 {
[%emt 0:00:24]} Qb4 {[%emt 0:01:17]} 37. Kg2 {[%emt 0:00:23]} Nd7 {[%emt 0:00:
00]} 38. e4 {[%emt 0:00:47]} Nc5 {[%emt 0:03:15]} 39. exd5 {[%emt 0:00:20]}
exd5 {[%emt 0:01:21]} 40. Bxd5+ {[%emt 0:00:36]} Kh8 {[%emt 0:00:07]} 41. Qe3 {
[%emt 0:03:13]} 1-0

[Event "44th Chess Olympiad Open 2022"]
[Site "Chennai"]
[Date "2022.08.07"]
[Round "9.57"]
[White "Bullen, Alex"]
[Black "Myat Thiri Aung Kyaw"]
[Result "1-0"]
[WhiteElo "2106"]
[BlackElo "2120"]
[Annotator "RC"]
[PlyCount "111"]
[EventDate "2022.??.??"]
[TimeControl "60"]

1. d4 {[%emt 0:00:04]} Nf6 {[%emt 0:00:01]} 2. Nf3 {[%emt 0:00:00]} e6 {
[%emt 0:01:11]} 3. c4 {[%emt 0:00:00]} Bb4+ {[%emt 0:00:34]} 4. Bd2 {[%emt 0:
00:00]} Qe7 {[%emt 0:00:11]} 5. g3 {[%emt 0:00:06]} Nc6 {[%emt 0:00:18]} 6. Bg2
{[%emt 0:00:23]} Bxd2+ {[%emt 0:00:08]} 7. Qxd2 {[%emt 0:02:02]} Ne4 {[%emt 0:
00:00]} 8. Qc2 {[%emt 0:00:50]} Qb4+ {[%emt 0:03:26]} 9. Nc3 {[%emt 0:14:20]}
Nxc3 {[%emt 0:07:32]} 10. Qxc3 {[%emt 0:00:36]} Qxc3+ {[%emt 0:00:29]} 11. bxc3
{[%emt 0:00:15]} d6 {[%emt 0:01:02]} 12. O-O {[%emt 0:13:49]} Bd7 {[%emt 0:00:
00]} 13. Nd2 {[%emt 0:02:02]} Rb8 {[%emt 0:06:23]} 14. Rab1 {[%emt 0:05:24]}
Ke7 {[%emt 0:00:21]} 15. Nb3 {[%emt 0:03:54]} b6 {[%emt 0:01:09]} 16. Rfd1 {
[%emt 0:01:07]} a5 {[%emt 0:07:11]} 17. Nc1 {[%emt 0:02:50]} Na7 {[%emt 0:00:
00]} 18. Nd3 {[%emt 0:05:14]} c5 {[%emt 0:01:27]} 19. dxc5 {[%emt 0:07:50]}
bxc5 {[%emt 0:00:31]} 20. f4 {[%emt 0:03:04]} Rhd8 {[%emt 0:16:09]} 21. Kf2 {
[%emt 0:05:10]} Ba4 {[%emt 0:11:22]} 22. Rdc1 {[%emt 0:00:41]} Be8 {[%emt 0:00:
00]} 23. e4 {[%emt 0:02:50]} a4 {[%emt 0:01:49]} 24. Ke3 {[%emt 0:03:17]} Nc6 {
[%emt 0:00:46]} 25. Rb5 {[%emt 0:04:31]} Rxb5 {[%emt 0:00:15]} 26. cxb5 {
[%emt 0:00:07]} Na5 {[%emt 0:00:08]} 27. c4 {[%emt 0:01:04]} f6 {[%emt 0:04:55]
} 28. Rc3 {[%emt 0:05:06]} e5 {[%emt 0:04:09]} 29. Nb2 {[%emt 0:01:25]} Ra8 {
[%emt 0:01:41]} 30. Ra3 {[%emt 0:02:20]} Nb7 {[%emt 0:03:05]} 31. Rxa4 {
[%emt 0:01:27]} Ra5 {[%emt 0:00:41]} 32. Rxa5 {[%emt 0:01:23]} Nxa5 {[%emt 0:
00:00]} 33. Bf1 {[%emt 0:00:29]} Bf7 {[%emt 0:00:09]} 34. Kd3 {[%emt 0:02:44]}
Kd7 {[%emt 0:01:48]} 35. Kc3 {[%emt 0:00:23]} Be6 {[%emt 0:00:45]} 36. Nd1 {
[%emt 0:00:50]} Kc7 {[%emt 0:01:37]} 37. Ne3 {[%emt 0:00:25]} Kd7 {[%emt 0:00:
00]} 38. Be2 {[%emt 0:00:31]} Kd8 {[%emt 0:00:20]} 39. Nf1 {[%emt 0:03:03]} Kc7
{[%emt 0:00:27]} 40. Ne3 {[%emt 0:02:19]} Kd8 {[%emt 0:00:21]} 41. Kb2 {
[%emt 0:30:29]} Bd7 {[%emt 0:31:11]} 42. Ka3 {[%emt 0:01:59]} Nb7 {[%emt 0:00:
00]} 43. Bg4 {[%emt 0:00:00]} Be8 {[%emt 0:00:00]} 44. Be6 {[%emt 0:00:00]} Kc7
{[%emt 0:00:00]} 45. Bd5 {[%emt 0:00:00]} Nd8 {[%emt 0:00:00]} 46. Kb3 {
[%emt 0:00:00]} exf4 {[%emt 0:00:00]} 47. gxf4 {[%emt 0:00:00]} g5 {[%emt 0:00:
00]} 48. fxg5 {[%emt 0:00:00]} fxg5 {[%emt 0:00:00]} 49. a4 {[%emt 0:00:00]}
Kb6 {[%emt 0:00:00]} 50. Nf5 {[%emt 0:00:00]} Bh5 {[%emt 0:00:00]} 51. Nxd6 {
[%emt 0:00:00]} Bg4 {[%emt 0:00:00]} 52. Nf7 {[%emt 0:00:00]} Nxf7 {[%emt 0:00:
00]} 53. Bxf7 {[%emt 0:00:00]} h5 {[%emt 0:00:00]} 54. e5 {[%emt 0:00:00]} Kc7
{[%emt 0:00:00]} 55. b6+ {[%emt 0:00:00]} Kxb6 {[%emt 0:00:00]} 56. e6 {
[%emt 0:00:00]} 1-0

[Event "44th Chess Olympiad Open 2022"]
[Site "Chennai"]
[Date "2022.08.07"]
[Round "9.57"]
[White "Nay Lin Tun"]
[Black "Kett, Tim"]
[Result "0-1"]
[WhiteElo "2045"]
[BlackElo "2197"]
[Annotator "RC"]
[PlyCount "94"]
[EventDate "2022.??.??"]
[TimeControl "60"]

1. e4 {[%emt 0:00:26]} e5 {[%emt 0:00:11]} 2. Nf3 {[%emt 0:00:07]} Nc6 {
[%emt 0:00:06]} 3. Bb5 {[%emt 0:00:33]} a6 {[%emt 0:00:39]} 4. Ba4 {[%emt 0:00:
00]} Nf6 {[%emt 0:01:03]} 5. O-O {[%emt 0:00:31]} Be7 {[%emt 0:00:12]} 6. Re1 {
[%emt 0:01:25]} b5 {[%emt 0:00:16]} 7. Bb3 {[%emt 0:00:07]} d6 {[%emt 0:00:11]}
8. c3 {[%emt 0:01:09]} O-O {[%emt 0:00:18]} 9. h3 {[%emt 0:01:10]} Na5 {
[%emt 0:03:44]} 10. Bc2 {[%emt 0:00:08]} c5 {[%emt 0:00:11]} 11. d4 {[%emt 0:
00:00]} Qc7 {[%emt 0:00:22]} 12. Nbd2 {[%emt 0:01:20]} Bd7 {[%emt 0:13:07]} 13.
Nf1 {[%emt 0:04:30]} Rac8 {[%emt 0:09:17]} 14. d5 {[%emt 0:14:22]} Ne8 {
[%emt 0:03:21]} 15. Ng3 {[%emt 0:06:01]} g6 {[%emt 0:00:30]} 16. b3 {[%emt 0:
00:00]} Ng7 {[%emt 0:04:54]} 17. Bh6 {[%emt 0:07:50]} f6 {[%emt 0:13:09]} 18.
Nh2 {[%emt 0:08:27]} Nb7 {[%emt 0:02:34]} 19. f4 {[%emt 0:10:48]} exf4 {
[%emt 0:04:48]} 20. Bxf4 {[%emt 0:00:21]} Nd8 {[%emt 0:00:12]} 21. Ng4 {
[%emt 0:05:52]} Nf7 {[%emt 0:00:57]} 22. Rf1 {[%emt 0:05:42]} Ne5 {[%emt 0:00:
00]} 23. Nh6+ {[%emt 0:02:00]} Kh8 {[%emt 0:00:07]} 24. Qe2 {[%emt 0:04:32]} a5
{[%emt 0:05:20]} 25. Rf2 {[%emt 0:02:16]} c4 {[%emt 0:00:44]} 26. Bd2 {[%emt 0:
00:00]} Rce8 {[%emt 0:10:45]} 27. Kh2 {[%emt 0:02:40]} Bd8 {[%emt 0:03:06]} 28.
Raf1 {[%emt 0:00:52]} Bc8 {[%emt 0:04:01]} 29. Qd1 {[%emt 0:02:21]} Qc5 {
[%emt 0:03:31]} 30. h4 {[%emt 0:01:49]} Qa7 {[%emt 0:04:04]} 31. h5 {[%emt 0:
00:00]} Qd7 {[%emt 0:00:57]} 32. Bg5 {[%emt 0:02:45]} f5 {[%emt 0:02:20]} 33.
Be3 {[%emt 0:00:54]} Qe7 {[%emt 0:00:45]} 34. Rh1 {[%emt 0:02:01]} fxe4 {
[%emt 0:01:32]} 35. Nxe4 {[%emt 0:00:31]} Nxh5 {[%emt 0:00:22]} 36. Kg1 {
[%emt 0:00:33]} Rxf2 {[%emt 0:00:15]} 37. Bxf2 {[%emt 0:00:11]} cxb3 {[%emt 0:
00:00]} 38. axb3 {[%emt 0:00:09]} Qg7 {[%emt 0:00:24]} 39. Be3 {[%emt 0:00:39]}
Be7 {[%emt 0:00:37]} 40. g4 {[%emt 0:01:08]} Nf6 {[%emt 0:00:26]} 41. Bd4 {
[%emt 0:30:39]} Nxe4 {[%emt 0:31:05]} 42. Bxe4 {[%emt 0:00:29]} Bg5 {[%emt 0:
00:00]} 43. Qf1 {[%emt 0:00:00]} Bxh6 {[%emt 0:00:00]} 44. Qxb5 {[%emt 0:00:00]
} Rf8 {[%emt 0:00:00]} 45. Qb6 {[%emt 0:00:00]} Bf4 {[%emt 0:00:00]} 46. Qxd6 {
[%emt 0:00:00]} Nf3+ {[%emt 0:00:00]} 47. Bxf3 {[%emt 0:00:00]} Qxd4+ {[%emt 0:
00:00]} 0-1